Cogmind - Beta 14 @@@ ROGUE MODE // 2025.03.23 @ 21:33:49 Player: nitr0gen Result: Destroyed by Y-45 Defender with Heavy Assault Rifle Performance ------------- Evolutions (1) 500 Regions Visited (2) 400 Robots Destroyed (7) 35 Value Destroyed (93) 93 Prototype IDs (0) 0 Alien Tech Used (0) 0 Bonus (0) 0 TOTAL SCORE: 1028 Bonus ------- None Cogmind --------- Core Integrity 0/400 Matter 18/300 Energy 99/100 System Corruption 0% Temperature Cool (33) Movement Core (100) Ox1 Location -9/Materials Parts ------- > --- POWER (2) -------- (None) > --- PROPULSION (3) --- (None) > --- UTILITY (2) ------ Small Storage Unit > --- WEAPON (2) ------- (None) > --- INVENTORY (8) ---- Medium Laser Light Assault Rifle Grenade Launcher Rocket Launcher Rocket Launcher Peak State ------------ > --- POWER ------------ Ion Engine > --- PROPULSION ------- Compact Wheel Compact Wheel > --- UTILITY ---------- Small Storage Unit > --- WEAPON ----------- Rocket Launcher Rocket Launcher > --- INVENTORY -------- Medium Laser Light Assault Rifle Grenade Launcher Grenade Launcher [Rating: 8] Favorites ----------- Power Ion Engine Engine Ion Engine Propulsion Compact Wheel Wheel Compact Wheel Utility Small Storage Unit Storage Small Storage Unit Weapon Grenade Launcher Energy Gun Medium Laser Ballistic Gun Light Assault Rifle Launcher Grenade Launcher Build | -11 -10 -9 ------- Run | Yrd Mat Mat Slots Evolved 2 | . . 2 Power 1 | . . 1 Propulsion 1 | . . 1 Utility . | . . . Weapon . | . . . Parts Attached 14 | 6 3 5 Power 1 | 1 . . Engine 1 | 1 . . Core . | . . . Reactor . | . . . Propulsion 3 | 2 . 1 Treads . | . . . Leg . | . . . Wheel 3 | 2 . 1 Hover . | . . . Flight . | . . . Utility 2 | 1 1 . Device . | . . . Storage 2 | 1 1 . Processor . | . . . Hackware . | . . . Protection . | . . . Artifact . | . . . Weapon 8 | 2 2 4 Energy Gun 1 | 1 . . Energy Cannon . | . . . Ballistic Gun 1 | 1 . . Ballistic Cannon . | . . . Launcher 6 | . 2 4 Special Weapon . | . . . Impact Weapon . | . . . Slashing Weapon . | . . . Piercing Weapon . | . . . Special Melee Weapon . | . . . Unidentified Prototypes . | . . . Parts Lost 6 | . . 6 Power 1 | . . 1 Propulsion 3 | . . 3 Utility . | . . . Weapon 2 | . . 2 Highest Loss Streak 4 | . . 4 To Critical Strikes . | . . . Average Slot Usage (%) 61 | . 84 34 Engine 9 | . 14 3 Wheel 19 | . 28 10 Storage 12 | . 13 11 Launcher 18 | . 26 9 Peak Build Rating 8 | 6 6 8 Average Rating 4 | 3 5 3 On Entrance 4 | . 6 6 Naked Turns . | . . . Heaviest Build 18 | 13 16 18 Greatest Support 32 | 32 32 32 Greatest Overweight (x) 2 | . . 2 Average Overweight (x) . | . . . Largest Inventory Capacity 8 | 8 8 8 Average Capacity 7 | 6 7 8 Most Carried 6 | 5 4 6 Average Carried 3 | . 1 5 Final Capacity 8 | 8 8 8 Final Carried 5 | . 2 5 Class Distribution -------------------- 100% | Mutant Dominant Class ---------------- Mutant | -10/Materials Mutant | -9/Materials Resources | -11 -10 -9 ----------- Run | Yrd Mat Mat Matter Collected 120 | 106 5 9 Remotely . | . . . Salvage Created 55 | . 43 12 Parts 17 | . 13 4 Haulers Intercepted . | . . . Recyclers Shooed . | . . . Parts Field Recycled . | . . . Retrieved Matter . | . . . Parts Self-Destructed . | . . . Prevented . | . . . Kills | -11 -10 -9 ------- Run | Yrd Mat Mat Combat Hostiles Destroyed 3 | . 3 . AOE 3 | . 3 . Classes Destroyed 4 | . 3 1 Builder 1 | . . 1 Operator 2 | . 1 1 Watcher 1 | . 1 . Swarmer 3 | . 3 . Best Kill Streak 4 | . 4 2 Combat Bots Only 3 | . 3 . Max Kills in Single Turn 2 | . 2 2 Gunslinging . | . . . Exploded 2 | . 2 . Melee . | . . . Uniques/NPCs Destroyed . | . . . Combat | -11 -10 -9 -------- Run | Yrd Mat Mat Hostile Shots Fired 77 | . 5 72 Missed 25 | . 1 24 Damage Taken 810 | . 83 727 Core 411 | . 9 402 Absorbed by Shields . | . . . Core Remaining (%) 98 | 100 96 . Volleys Fired 7 | . 4 3 Largest 2 | . 2 1 Hottest 60 | . 60 33 Shots Fired 11 | . 8 3 Gun . | . . . Cannon . | . . . Launcher 11 | . 8 3 Special . | . . . Kinetic . | . . . Thermal . | . . . Explosive 11 | . 8 3 Electromagnetic . | . . . Robot Hit Streak 2 | . 2 1 Robot Miss Streak 2 | . 2 1 Penetration Max . | . . . Secondary Targets . | . . . Shots Hit Robots 4 | . 2 2 Core Hits 12 | . 7 5 Critical Kills . | . . . Critical Parts Destroyed . | . . . Critical Strikes . | . . . Melee Attacks . | . . . Impact . | . . . Slashing . | . . . Piercing . | . . . Sneak Attacks . | . . . Combat Hostiles . | . . . Follow-up Attacks . | . . . Damage Inflicted 371 | . 243 128 Guns . | . . . Cannons . | . . . Explosions 344 | . 232 112 Melee . | . . . Ramming 27 | . 11 16 Kinetic . | . . . Thermal . | . . . Explosive 344 | . 232 112 Electromagnetic . | . . . Impact . | . . . Slashing . | . . . Piercing . | . . . Highest Corruption 2 | . 2 . Average Corruption 1 | . 1 . Corruption Purged . | . . . Corruption Blocked . | . . . Overload Shots . | . . . Overflow Damage . | . . . Projectiles . | . . . Explosions . | . . . Melee . | . . . Knockbacks . | . . . Impact . | . . . Kinetic . | . . . Secondary . | . . . Self-Inflicted Damage 28 | . 16 12 Shots 3 | . 2 1 Rammed 7 | . 1 6 Targets Rammed 7 | . 1 6 Kicked . | . . . Crushed . | . . . Highest Temperature 11 | . . 11 Average Temperature 7 | . . 7 Received Heat Transfer 261 | . . 261 Siege Activations . | . . . Robots Corrupted . | . . . Combat Hostiles . | . . . Parts Fried . | . . . Impact Corruptions . | . . . Robots Melted . | . . . Combat Hostiles . | . . . Parts Melted . | . . . Heat Transferred . | . . . Parts Sabotaged . | . . . Parts Stolen . | . . . Parts Stripped . | . . . Power Chain Reactions . | . . . Alert | -11 -10 -9 ------- Run | Yrd Mat Mat Peak Influence 171 | . 171 108 Initial 72 | . . 72 Average 90 | . 116 85 Maximum Alert Level . | . . . Low Security (%) 100 | 100 100 100 Level 1 . | . . . Level 2 . | . . . Level 3 . | . . . Level 4 . | . . . Level 5 . | . . . High Security . | . . . Max Security . | . . . Squads Dispatched 3 | . . 3 Investigation . | . . . Extermination . | . . . Reinforcement 3 | . . 3 Assault . | . . . Garrison . | . . . Intercept . | . . . Searches Triggered . | . . . Construction Impeded . | . . . Haulers Reinforced . | . . . Active Scanning Responses . | . . . Cargo Convoy Interrupts . | . . . Stealth | -11 -10 -9 --------- Run | Yrd Mat Mat Distress Signals 3 | . 1 2 Communications Jammed . | . . . Distress Signals . | . . . Times Spotted 18 | . 6 12 Peak Tracking Total 10 | . 5 10 Tactical Retreats 1 | . 1 . Traps | -11 -10 -9 ------- Run | Yrd Mat Mat Traps Triggered 1 | . 1 . Indirectly . | . . . Trap Hack Attempts . | . . . Triggered . | . . . Disarmed . | . . . Reprogrammed . | . . . Reused . | . . . Traps Extracted . | . . . Installed . | . . . Triggered . | . . . Machines | -11 -10 -9 ---------- Run | Yrd Mat Mat Machines Disabled 1 | . 1 . Max in Single Turn 1 | . 1 . Machines Repaired . | . . . Machines Dismantled . | . . . Machines Sabotaged . | . . . Overloaded Fab Kills . | . . . Hacking | -11 -10 -9 --------- Run | Yrd Mat Mat Machines Accessed 3 | . 2 1 Terminals 2 | . 2 . Fabricators . | . . . Repair Stations . | . . . Recycling Units . | . . . Scanalyzers 1 | . . 1 Garrison Access . | . . . Total Hacks 10 | . 6 4 Successful 4 | . 2 2 Failed 6 | . 4 2 Catastrophic 2 | . 2 . Database Lockouts . | . . . Manual . | . . . Terminals 6 | . 6 . Fabricators . | . . . Repair Stations . | . . . Recycling Units . | . . . Scanalyzers 4 | . . 4 Garrison Access . | . . . Terminal Hacks 2 | . 2 . Record 2 | . 2 . Fabricator Hacks . | . . . Repair Station Hacks . | . . . Recycling Unit Hacks . | . . . Scanalyzer 2 | . . 2 Insert Component 1 | . . 1 Analyze 1 | . . 1 Garrison Access Hacks . | . . . Unauthorized Hacks . | . . . Terminals . | . . . Fabricators . | . . . Repair Stations . | . . . Recycling Units . | . . . Scanalyzers . | . . . Garrison Access . | . . . Data Cores Recovered . | . . . Used . | . . . Hacking Detections 3 | . 2 1 Full Trace Events 3 | . 2 1 Feedback Events 2 | . 2 . Corruption 2 | . 2 . Feedback Blocked . | . . . Robot Schematics Acquired . | . . . Robots Built . | . . . Authchips . | . . . Time . | . . . Total Robot Build Rating . | . . . Part Schematics Acquired 1 | . . 1 Parts Built . | . . . Authchips . | . . . Time . | . . . Total Part Build Rating . | . . . Parts Repaired . | . . . Time . | . . . Parts Recycled . | . . . Recycled Matter . | . . . Retrieved Matter . | . . . Retrieved Components . | . . . Parts Scanalyzed 1 | . . 1 Part Schematics Acquired 1 | . . 1 Parts Damaged . | . . . Bothacking | -11 -10 -9 ------------ Run | Yrd Mat Mat Used RIF Installer . | . . . Robots Hacked . | . . . Non-combat . | . . . Combat . | . . . Robot Hacks Applied . | . . . Relay Couplers Released . | . . . Fabnet Peak Effective % . | . . . Robots Rewired . | . . . Allies Hacked . | . . . Hacks Repelled . | . . . Allies | -11 -10 -9 -------- Run | Yrd Mat Mat Total Allies . | . . . Largest Group . | . . . Highest-Rated Group . | . . . Highest-Rated Ally . | . . . Total Orders . | . . . Ally Attacks . | . . . Total Damage . | . . . Kills . | . . . Allies Corrupted . | . . . Allies Melted . | . . . Intel | -11 -10 -9 ------- Run | Yrd Mat Mat Robot Analysis Total . | . . . Derelict Logs Recovered . | . . . Drone Launches . | . . . Drone Recoveries . | . . . Exploration | -11 -10 -9 ------------- Run | Yrd Mat Mat Turns Passed 374 | 45 182 147 Spaces Moved 321 | 41 163 117 Core 64 | 15 . 49 Treads . | . . . Legs . | . . . Wheels 257 | 26 163 68 Hover . | . . . Flight . | . . . Fastest Speed 50 | 50 100 80 Average Speed 99 | 81 100 106 Slowest Speed 150 | 100 100 150 Overloaded Moves . | . . . Propulsion Burnouts . | . . . Robots Hopped . | . . . Cave-ins Triggered . | . . . Exploration Rate (%) 20 | 3 34 25 Regions Visited 2 Branch Regions . Pre-discovered Areas . | . . . Known Exits Taken . | . . . Unknown Exits Taken 2 | 1 1 . Scrap Searched . | . . . Spaces Dug . | . . . Terrain Destroyed 65 | . 46 19 Melee . | . . . Projectile . | . . . AOE 65 | . 46 19 Terrain Rammed . | . . . Walls Destroyed . | . . . Machines Disabled . | . . . Actions | -11 -10 -9 --------- Run | Yrd Mat Mat Total 366 | 52 175 139 Wait . | . . . Move 319 | 40 162 117 Hop . | . . . Pick Up 12 | 6 2 4 Fast Attach . | . . . Attach 14 | 6 3 5 Detach 7 | . 3 4 Swap . | . . . Drop . | . . . Fire 7 | . 4 3 Melee . | . . . Ram 7 | . 1 6 Kick . | . . . Crush . | . . . Escape Stasis . | . . . Rewire . | . . . Trap . | . . . Miscellaneous . | . . . Route ------- -11/Scrapyard -10/Materials -9/Materials (discovered 1 exit: [*Min]) History --------- Turn | Location | Event 6 | -11/Scrapyard | Discovered new exit (range 16) 46 | -11/Scrapyard | Entered Materials 220 | -10/Materials | Discovered new exit (range 7) 228 | -10/Materials | Entered another Materials area 228 | -9/Materials | Evolved 2 slots: Power x1, Propulsion x1 301 | -9/Materials | Build established: Mutant 325 | -9/Materials | Lost 4 parts (1p2n1w) 345 | -9/Materials | Discovered new exit (range 12) 355 | -9/Materials | Core integrity fell below 50% 375 | -9/Materials | Core integrity fell below 20% 375 | -9/Materials | Destroyed by Y-45 Defender with Heavy Assault Rifle Last Messages --------------- R-06 Scavenger collects Lgt. Ion Engine. Acquired 9 matter. R-06 Scavenger collects Wheel. Grenade Launcher destroyed. Acquired Wheel. R-06 Scavenger collects Datajack. Critical hit (Burn: +37). W-16 Scout sends out distress signal. G-34 Mercenary destroyed. ALERT: Hostiles spotted, dispatching reinforcements to Terminal M001. R-06 Scavenger collects Aluminum Leg. Processing Tank disabled. K-01 Serf collects debris. R-06 Scavenger collects Ion Engine. Wheel destroyed. K-01 Serf collects debris. R-06 Scavenger collects Heat Sink. U-05 Engineer lays Concrete. K-01 Serf collects debris. Map ----- +----------------------------------------------------+ | ?????????????????????????????????????????????????? | | ?????????????????????????????????????????????????? | | ????????????????? ?????????????????????????????? | | ????????????????# ?????????????????????????????? | | ???????????????## ##???????????????????????????? | | ??????????????""" #???????????????????????????? | | ??????????????" #???????????????????????????? | | ??????????????"| #???????????????????????????? | | ??????????????"" < #???????????????????????????? | | ??????????????"! #?????????????????? ????????? | | ??????????????? ????????????????? ????????? | | ????????????????" ???????????????? ?????????? | | ????????????????# #??????????????? ??????????? | | ????????????????# #??????????????? #??????????? | | ????????????????# #?????????????? #??????????? | | ????????????????# ####??????????? #??????????? | | ????########???##u ############ #??????????? | | ##### ] ##### k ########???? | | r #???? | | T #???? | | Y rr " ????? | | # ##### |[ g T ????? | | ###+#####?# |[ g """"" """"" " ????? | | #?# [[ """"" """"" ????? | | ## """" #?# r""""" " """ #???? | | ##### """" + @ g k #???? | | ????# """" #### Y Y #???? | | ????# #??### ########## #???? | | ????# """" ]#????# #?????????###+### #???? | | ????# """" #????# + ???????????? #????????? | | ????# """"??+??? r# ????????????? #???????? | | ????# ??????###### ##??????????????????????? | | ????#####????????????##+##???????????????????????? | | ?????????????????????? ????????????????????????? | | ??????????????????????? ?????????????????????????? | | ?????????????????????????????????????????????????? | | ?????????????????????????????????????????????????? | | ?????????????????????????????????????????????????? | | ?????????????????????????????????????????????????? | | ?????????????????????????????????????????????????? | | ?????????????????????????????????????????????????? | | ?????????????????????????????????????????????????? | | ?????????????????????????????????????????????????? | | ?????????????????????????????????????????????????? | | ?????????????????????????????????????????????????? | | ?????????????????????????????????????????????????? | | ?????????????????????????????????????????????????? | | ?????????????????????????????????????????????????? | | ?????????????????????????????????????????????????? | | ?????????????????????????????????????????????????? | +----------------------------------------------------+ Best States ------------- Heat Dissipation 28 Energy Generation 10 Energy Capacity 250 Matter Stores 146 Matter Capacity 300 Sight Range 16 Terrain Scan Density 10 Evasion (%) 50 Item Schematics ----------------- Rocket Launcher | -9/Materials | Scanalyzed Robot Schematics ------------------ None Fabricated ------------ Nothing Alien Tech Used ----------------- None Achievements -------------- None Challenges ------------ None Game ------ Seed ArmageddonAblativeRipteeth Manual? 0 Play Time 00:09:52 Cumulative 2.7 hours Start 2025.03.23 @ 21:24:13 End 2025.03.23 @ 21:33:49 Sessions 1 Manual Loads 0 Difficulty Rogue Special Mode None Game No. 9 Rogue 9 Adventurer 0 Explorer 0 Win Type - Total 0 Types 0/0/0/0/0/0/0/0/0 Lore% 6 Gallery% 7 Achievement% 8 Wizard Run 0 Options --------- Layout 1 ASCII 0 Keyboard 0 Movement Mouse Keybinds 0 Fullscreen 1 Font 32/SmallcapsGlow Map View 50x35 Zoom Use 0% Tactical HUD 0 Map Filters NONE Filters NONE Steam 1 RUN: c5f38617-84ed-4aba-a11f-8f80fd27266e